Cogmind - Beta 14 @@@ ROGUE MODE // 2024.11.14 @ 18:37:55 Player: Takao Tuesday Result: Self-destructed Performance ------------- Evolutions (1) 500 Regions Visited (3) 600 Robots Destroyed (38) 190 Value Destroyed (880) 880 Prototype IDs (2) 40 Alien Tech Used (0) 0 Bonus (27) 27 TOTAL SCORE: 2237 Bonus ------- High Alert Combat Kills 27 Cogmind --------- Core Integrity 299/400 Matter 500/500 Energy 280/280 System Corruption 0% Temperature Cool (48) Movement Rolling (101) Ox1 Location -9/Materials Parts ------- > --- POWER (1) -------- Heavy Ion Engine > --- PROPULSION (3) --- Wheel Wheel Compact Wheel > --- UTILITY (3) ------ Large Storage Unit High-capacity Matter Pod Sensor Array > --- WEAPON (2) ------- Particle Cannon Ripper > --- INVENTORY (15) --- Compact Wheel Cryofiber Web Medium Matter Pod (65) Advanced Weight Redist. System Signal Interpreter Signal Interpreter Terrain Scanner Particle Cannon Assault Rifle Assault Rifle Light Cannon Rocket Launcher Datajack Peak State ------------ > --- POWER ------------ Heavy Ion Engine > --- PROPULSION ------- Wheel Compact Wheel Armored Wheel > --- UTILITY ---------- Large Storage Unit High-capacity Matter Pod Sensor Array > --- WEAPON ----------- Rocket Launcher Ripper > --- INVENTORY -------- Heavy Ion Engine Wheel Compact Wheel Medium Matter Pod Signal Interpreter Signal Interpreter Terrain Scanner Particle Cannon Particle Cannon Assault Rifle Assault Rifle Light Cannon Rocket Launcher [Rating: 17] Favorites ----------- Power Heavy Ion Engine Engine Heavy Ion Engine Propulsion Wheel Wheel Wheel Utility Large Storage Unit Device Sensor Array Storage Large Storage Unit Weapon Particle Cannon Energy Cannon Particle Cannon Ballistic Gun Assault Rifle Ballistic Cannon Light Cannon Launcher Rocket Launcher Slashing Weapon Ripper Build | -11 -10 -10 -9 ------- Run | Yrd Mat Min Mat Slots Evolved 2 | . . . 2 Power . | . . . . Propulsion 1 | . . . 1 Utility 1 | . . . 1 Weapon . | . . . . Parts Attached 28 | 6 11 2 9 Power 5 | 1 3 . 1 Engine 5 | 1 3 . 1 Core . | . . . . Reactor . | . . . . Propulsion 7 | 2 3 . 2 Treads . | . . . . Leg . | . . . . Wheel 7 | 2 3 . 2 Hover . | . . . . Flight . | . . . . Utility 5 | 1 3 . 1 Device 1 | . . . 1 Storage 4 | 1 3 . . Processor . | . . . . Hackware . | . . . . Protection . | . . . . Artifact . | . . . . Weapon 11 | 2 2 2 5 Energy Gun . | . . . . Energy Cannon 2 | . 1 . 1 Ballistic Gun 3 | 2 . 1 . Ballistic Cannon 2 | . 1 . 1 Launcher 2 | . . . 2 Special Weapon . | . . . . Impact Weapon . | . . . . Slashing Weapon 2 | . . 1 1 Piercing Weapon . | . . . . Special Melee Weapon . | . . . . Unidentified Prototypes 2 | . 2 . . Parts Lost 3 | . . . 3 Power 1 | . . . 1 Propulsion 1 | . . . 1 Utility . | . . . . Weapon 1 | . . . 1 Highest Loss Streak 2 | . . . 2 To Critical Strikes . | . . . . Average Slot Usage (%) 96 | . 95 100 97 Engine 13 | . 14 14 10 Wheel 28 | . 27 28 32 Device 2 | . . . 11 Storage 24 | . 24 28 22 Energy Cannon 8 | . 9 13 4 Ballistic Gun 3 | . 5 1 . Ballistic Cannon 8 | . 12 2 2 Launcher 1 | . . . 4 Slashing Weapon 4 | . . 11 10 Peak Build Rating 17 | 6 12 16 17 Average Rating 12 | 4 10 15 15 On Entrance 8 | . 6 12 15 Naked Turns . | . . . . Heaviest Build 41 | 14 39 39 41 Greatest Support 38 | 26 26 22 38 Greatest Overweight (x) 1 | . 1 1 1 Average Overweight (x) . | . . 1 . Largest Inventory Capacity 15 | 8 15 15 15 Average Capacity 14 | 6 14 15 15 Most Carried 15 | 1 14 15 14 Average Carried 10 | . 9 14 12 Final Capacity 15 | 8 15 15 15 Final Carried 15 | 1 14 15 13 Class Distribution -------------------- 100% | Mutant Dominant Class ---------------- Mutant | -10/Materials Mutant | -10/Mines Mutant | -9/Materials Resources | -11 -10 -10 -9 ----------- Run | Yrd Mat Min Mat Matter Collected 1171 | 233 454 165 319 Remotely . | . . . . Salvage Created 1119 | . 580 147 392 Parts 69 | . 35 8 26 Haulers Intercepted . | . . . . Recyclers Shooed 2 | . 2 . . Parts Field Recycled . | . . . . Retrieved Matter . | . . . . Parts Self-Destructed . | . . . . Prevented . | . . . . Kills | -11 -10 -10 -9 ------- Run | Yrd Mat Min Mat Combat Hostiles Destroyed 27 | . 14 4 9 Melee 6 | . . 2 4 Guns 5 | . 5 . . Cannons 13 | . 9 2 2 AOE 3 | . . . 3 Classes Destroyed 7 | . 5 . 2 Worker 2 | . . . 2 Recycler 4 | . 3 1 . Operator 2 | . 1 . 1 Watcher 3 | . 2 . 1 Swarmer 10 | . 6 4 . Grunt 14 | . 8 . 6 Sentry 3 | . . . 3 Best Kill Streak 4 | . 4 4 4 Combat Bots Only 4 | . 3 3 4 Max Kills in Single Turn 2 | . 2 1 2 Gunslinging . | . . . . Exploded 2 | . . . 2 Melee 1 | . . 1 1 Uniques/NPCs Destroyed . | . . . . Combat | -11 -10 -10 -9 -------- Run | Yrd Mat Min Mat Hostile Shots Fired 120 | . 55 35 30 Missed 33 | . 13 8 12 Damage Taken 928 | . 420 214 294 Core 253 | . 97 55 101 Absorbed by Shields . | . . . . Regen/Repaired (Parts) 80 | . 80 . . Core Remaining (%) 69 | 100 . 39 . Volleys Fired 92 | . 47 17 28 Largest 2 | . 2 2 2 Hottest 103 | . 103 103 68 Shots Fired 142 | . 94 19 29 Gun 28 | . 26 2 . Cannon 102 | . 68 17 17 Launcher 12 | . . . 12 Special . | . . . . Kinetic 72 | . 60 4 8 Thermal 58 | . 34 15 9 Explosive 12 | . . . 12 Electromagnetic . | . . . . Robot Hit Streak 12 | . 12 3 7 Robot Miss Streak 5 | . 5 3 3 Penetration Max . | . . . . Secondary Targets . | . . . . Shots Hit Robots 73 | . 44 9 20 Core Hits 47 | . 23 5 19 Critical Kills . | . . . . Critical Parts Destroyed . | . . . . Critical Strikes . | . . . . Melee Attacks 13 | . . 5 8 Impact . | . . . . Slashing 13 | . . 5 8 Piercing . | . . . . Sneak Attacks 2 | . . 1 1 Combat Hostiles . | . . . . Follow-up Attacks . | . . . . Damage Inflicted 2084 | . 866 270 948 Guns 213 | . 213 . . Cannons 912 | . 653 121 138 Explosions 516 | . . . 516 Melee 443 | . . 149 294 Ramming . | . . . . Kinetic 638 | . 602 . 36 Thermal 531 | . 264 121 146 Explosive 347 | . . . 347 Electromagnetic 125 | . . . 125 Impact . | . . . . Slashing 443 | . . 149 294 Piercing . | . . . . Highest Corruption 2 | . 2 2 . Average Corruption 2 | . 2 2 . Corruption Purged . | . . . . Corruption Blocked . | . . . . Effects 13 | . 11 2 . Message Errors 3 | . 3 . . Matter Fused 5 | . 4 1 . Heat Flow Errors 1 | . 1 . . Energy Discharges 3 | . 2 1 . Data Loss (minor) 1 | . 1 . . Overload Shots . | . . . . Overflow Damage 46 | . 10 1 35 Projectiles 11 | . 10 1 . Explosions 16 | . . . 16 Melee 19 | . . . 19 Knockbacks 1 | . . . 1 Impact . | . . . . Kinetic 1 | . . . 1 Secondary . | . . . . Self-Inflicted Damage 87 | . . . 87 Shots 3 | . . . 3 Rammed . | . . . . Targets Rammed . | . . . . Kicked . | . . . . Crushed . | . . . . Highest Temperature 348 | . 348 180 72 Average Temperature 96 | . 111 79 25 Received Heat Transfer 276 | . 156 . 120 Effects 2 | . 2 . . Energy Bleed 2 | . 2 . . Siege Activations . | . . . . Robots Corrupted . | . . . . Combat Hostiles . | . . . . Parts Fried . | . . . . Impact Corruptions . | . . . . Robots Melted . | . . . . Combat Hostiles . | . . . . Parts Melted . | . . . . Heat Transferred 938 | . 481 222 235 Parts Sabotaged . | . . . . Parts Stolen . | . . . . Parts Stripped . | . . . . Power Chain Reactions 1 | . . . 1 Alert | -11 -10 -10 -9 ------- Run | Yrd Mat Min Mat Peak Influence 570 | . 216 184 570 Initial 71 | . . 34 71 Average 154 | . 93 119 337 Maximum Alert Level 2 | . 1 . 2 Low Security (%) 79 | 100 97 100 22 Level 1 11 | . 2 . 43 Level 2 8 | . . . 34 Level 3 . | . . . . Level 4 . | . . . . Level 5 . | . . . . High Security . | . . . . Max Security . | . . . . Squads Dispatched 5 | . 3 . 2 Investigation 3 | . 2 . 1 Extermination . | . . . . Reinforcement 2 | . 1 . 1 Assault . | . . . . Garrison . | . . . . Intercept . | . . . . Searches Triggered . | . . . . Construction Impeded . | . . . . Haulers Reinforced . | . . . . Active Scanning Responses . | . . . . Cargo Convoy Interrupts . | . . . . Stealth | -11 -10 -10 -9 --------- Run | Yrd Mat Min Mat Distress Signals 2 | . . . 2 Communications Jammed . | . . . . Distress Signals . | . . . . Times Spotted 51 | . 18 8 25 Peak Tracking Total 6 | . 3 3 6 Tactical Retreats 2 | . . 1 1 Traps | -11 -10 -10 -9 ------- Run | Yrd Mat Min Mat Traps Triggered 3 | . 2 . 1 Indirectly . | . . . . Trap Hack Attempts . | . . . . Triggered . | . . . . Disarmed 6 | . . . 6 Reprogrammed . | . . . . Reused . | . . . . Traps Extracted . | . . . . Installed . | . . . . Triggered . | . . . . Machines | -11 -10 -10 -9 ---------- Run | Yrd Mat Min Mat Machines Disabled 5 | . . 1 4 Max in Single Turn 3 | . . 1 3 Machines Repaired . | . . . . Machines Dismantled . | . . . . Machines Sabotaged . | . . . . Overloaded Fab Kills . | . . . . Hacking | -11 -10 -10 -9 --------- Run | Yrd Mat Min Mat Machines Accessed 6 | . 5 . 1 Terminals 3 | . 2 . 1 Fabricators . | . . . . Repair Stations 1 | . 1 . . Recycling Units 2 | . 2 . . Scanalyzers . | . . . . Garrison Access . | . . . . Total Hacks 11 | . 9 . 2 Successful 9 | . 8 . 1 Failed 2 | . 1 . 1 Catastrophic . | . . . . Database Lockouts . | . . . . Manual . | . . . . Terminals 5 | . 3 . 2 Fabricators . | . . . . Repair Stations 2 | . 2 . . Recycling Units 4 | . 4 . . Scanalyzers . | . . . . Garrison Access . | . . . . Terminal Hacks 3 | . 2 . 1 Disarm Traps 1 | . . . 1 Registered Components 1 | . 1 . . Zone Layout 1 | . 1 . . Fabricator Hacks . | . . . . Repair Station Hacks 2 | . 2 . . Scan Component 1 | . 1 . . Repair 1 | . 1 . . Recycling Unit Hacks 4 | . 4 . . Report Inventory 2 | . 2 . . Retrieve Components 2 | . 2 . . Scanalyzer . | . . . . Garrison Access Hacks . | . . . . Unauthorized Hacks . | . . . . Terminals . | . . . . Fabricators . | . . . . Repair Stations . | . . . . Recycling Units . | . . . . Scanalyzers . | . . . . Garrison Access . | . . . . Data Cores Recovered 1 | . 1 . . Used . | . . . . Hacking Detections 3 | . 2 . 1 Full Trace Events . | . . . . Feedback Events . | . . . . Feedback Blocked . | . . . . Robot Schematics Acquired . | . . . . Robots Built . | . . . . Authchips . | . . . . Time . | . . . . Total Robot Build Rating . | . . . . Part Schematics Acquired . | . . . . Parts Built . | . . . . Authchips . | . . . . Time . | . . . . Total Part Build Rating . | . . . . Parts Repaired 1 | . 1 . . Time 32 | . 32 . . Parts Recycled . | . . . . Recycled Matter . | . . . . Retrieved Matter . | . . . . Retrieved Components 5 | . 5 . . Parts Scanalyzed . | . . . . Part Schematics Acquired . | . . . . Parts Damaged . | . . . . Bothacking | -11 -10 -10 -9 ------------ Run | Yrd Mat Min Mat Used RIF Installer . | . . . . Robots Hacked . | . . . . Non-combat . | . . . . Combat . | . . . . Robot Hacks Applied . | . . . . Relay Couplers Released . | . . . . Fabnet Peak Effective % . | . . . . Robots Rewired . | . . . . Allies Hacked . | . . . . Hacks Repelled . | . . . . Allies | -11 -10 -10 -9 -------- Run | Yrd Mat Min Mat Total Allies . | . . . . Largest Group . | . . . . Highest-Rated Group . | . . . . Highest-Rated Ally . | . . . . Total Orders . | . . . . Ally Attacks . | . . . . Total Damage . | . . . . Kills . | . . . . Allies Corrupted . | . . . . Allies Melted . | . . . . Intel | -11 -10 -10 -9 ------- Run | Yrd Mat Min Mat Robot Analysis Total . | . . . . Derelict Logs Recovered . | . . . . Drone Launches . | . . . . Drone Recoveries . | . . . . Exploration | -11 -10 -10 -9 ------------- Run | Yrd Mat Min Mat Turns Passed 1837 | 47 1052 289 449 Spaces Moved 1415 | 42 799 219 355 Core 2 | 2 . . . Treads . | . . . . Legs . | . . . . Wheels 1413 | 40 799 219 355 Hover . | . . . . Flight . | . . . . Fastest Speed 50 | 50 90 100 86 Average Speed 100 | 88 100 100 100 Slowest Speed 105 | 100 105 100 105 Overloaded Moves . | . . . . Propulsion Burnouts . | . . . . Robots Hopped . | . . . . Cave-ins Triggered . | . . . . Exploration Rate (%) 44 | 4 98 43 34 Regions Visited 3 Branch Regions 1 Pre-discovered Areas 1 | . . 1 . Known Exits Taken . | . . . . Unknown Exits Taken 3 | 1 1 1 . Scrap Searched . | . . . . Spaces Dug . | . . . . Terrain Destroyed 71 | . . . 71 Melee . | . . . . Projectile . | . . . . AOE 71 | . . . 71 Terrain Rammed . | . . . . Walls Destroyed . | . . . . Machines Disabled . | . . . . Actions | -11 -10 -10 -9 --------- Run | Yrd Mat Min Mat Total 1664 | 48 952 261 403 Wait 94 | . 76 18 . Move 1412 | 41 798 218 355 Hop . | . . . . Pick Up 20 | 1 15 1 3 Fast Attach 9 | 6 3 . . Attach 5 | . . . 5 Detach . | . . . . Swap 14 | . 8 2 4 Drop 5 | . 5 . . Fire 92 | . 47 17 28 Melee 13 | . . 5 8 Ram . | . . . . Kick . | . . . . Crush . | . . . . Escape Stasis . | . . . . Rewire . | . . . . Trap . | . . . . Miscellaneous . | . . . . Route ------- -11/Scrapyard -10/Materials (discovered 5 exits: *Mat x3 / [*Min x2]) -10/Mines -9/Materials (discovered 1 exit: [*Mat]) History --------- Turn | Location | Event 33 | -11/Scrapyard | Discovered new exit (range 14) 48 | -11/Scrapyard | Entered Materials 218 | -10/Materials | Discovered new exit (range 15) 316 | -10/Materials | Build established: Mutant 319 | -10/Materials | Discovered new exit (range 15) 421 | -10/Materials | Repaired Arm. Wheel 494 | -10/Materials | Discovered new exit (range 16) 651 | -10/Materials | Discovered new exit (range 15) 679 | -10/Materials | Discovered new exit (range 8) 1100 | -10/Materials | Entered Mines 1125 | -10/Mines | A weapon hastily lodged in a ceiling crevice suddenly fell to the ground 1138 | -10/Mines | Met a Derelict bent on vengeance 1343 | -10/Mines | Learned location of Storage (-7) 1343 | -10/Mines | Discovered new exit (range 4) 1345 | -10/Mines | Core integrity fell below 50% 1389 | -10/Mines | Entered Materials 1389 | -9/Materials | Evolved 2 slots: Propulsion x1, Utility x1 1649 | -9/Materials | Discovered new exit (range 11) 1838 | -9/Materials | Self-destructed Last Messages --------------- G-34 Mercenary destroyed. U-05 Engineer builds a Wall. K-01 Serf cleans the Electrolysis Chamber. Acquired Datajack. Sneak attack on K-01 Serf. K-01 Serf destroyed. Acquired 27 matter. R-06 Scavenger collects Wheel. Acquired 33 matter. Triggered Alarm Trap. An alarm sounds. ALERT: Alarm triggered, dispatching investigation squad. G-34 Mercenary destroyed. R-06 Scavenger collects Ion Engine. R-06 Scavenger collects Aluminum Leg. Acquired 42 matter. R-06 Scavenger collects Aluminum Leg. R-06 Scavenger collects Sml. Laser. Acquired 43 matter. Map ----- +----------------------------------------------------+ | #####?????"""????????????????????????? | | % [ # # ####? """????????????????????????? | | ! [ [ #? """????????????????????????? | | # # # # """????????????????????????? | | """"???????????????????????? | | + """????????????????????????? | | ########### #?????????????????????????????? | | ?????????# #?????????????????????????????? | | ?????????## ##### #?????????????????????????????? | | ?????######## ####?????????????????????????????? | | ?????# ! # < #????????????????????????????????? | | ####?# # #?????#######????????????????????? | | #?# """ + ####### #????????????????????? | | ### """ # #????????????????????? | | + """ # #????????????????????? | | ### # ? #????????????????????? | | ############# ###+### #????????????????????? | | #???????# ## ## ##????????????????????? | | #???????# ## ## #?????????????????????? | | """ #???????# ? ## ## #?????????????????????? | | """ #???????# ?## ## #?????????????????????? | | """ #???????# ## ## #?????????????????????? | | #???????# ## ## #?????????????????????? | | #???????# ## ## #?????????????????????? | | [ #???????# ## ## #?????????????????????? | | ############# ## ## @r#?????????????????????? | | " # + ######## #?????????????????????? | | " # " # ? #??????# + ????????????????????? | | # T # #??????# # "???????????????????? | | # " # #??????# # ??????????????????? | | + # #??????# #?###?????????????????? | | " # ! # #?????? #?????????????????????? | | " # # #?????? #?????????????????????? | | " # # #?????? #?????????????????????? | | " #####+##### #????? #?????????????????????? | | #???# ##### #????? #?????????????????????? | | ###???# #????? ass#?????????????????????? | | ##############+######?## gg ?????????????????????? | | + #??? ?????????????????????? | | # #??? ?????????????????????? | | + """ #???gg ?????????????????????? | | ##+###### """"" #????????????????????????????? | | ## """"" #????????????????????????????? | | """ "" ## """"" #????????????????????????????? | | """ """## """ #????????????????????????????? | | """ S"##############????????????????????????????? | | #?????????????????????????????????????????? | | """ #?????????????????????????????????????????? | | """ #?????????????????????????????????????????? | | ??? #?????????????????????????????????????????? | +----------------------------------------------------+ Best States ------------- Heat Dissipation 28 Energy Generation 14 Energy Capacity 280 Matter Stores 500 Matter Capacity 500 Sight Range 16 Robot Scan Range 14 Terrain Scan Density 10 Evasion (%) 42 Item Schematics ----------------- None Robot Schematics ------------------ None Fabricated ------------ Nothing Alien Tech Used ----------------- None Achievements -------------- None Challenges ------------ None Game ------ Seed SubdwellerHypercooledNetwork Manual? 0 Play Time 00:22:59 Cumulative 8.3 hours Start 2024.11.14 @ 18:16:12 End 2024.11.14 @ 18:37:55 Sessions 1 Manual Loads 0 Difficulty Rogue Special Mode None Game No. 12 Rogue 1 Adventurer 0 Explorer 11 Win Type - Total 0 Types 0/0/0/0/0/0/0/0/0 Lore% 3 Gallery% 14 Achievement% 13 Wizard Run 0 Options --------- Layout 1 ASCII 0 Keyboard 0 Movement Mouse Keybinds 0 Fullscreen 1 Font 24/Smallcaps Map View 50x35 Zoom Use 0% Tactical HUD 0 Map Filters NONE Filters NONE Steam 1 RUN: 9df1c8af-58c0-4bed-bba8-82d072d75ba2